fUSD/lending_fUSD_20241223
["ID","MTS","AMOUNT","RATE_DAILY","PERIOD"]
[346407333,1734947453894,-500.0,0.00019178,2]
[346407334,1734947453904,-14872.93,0.00019178,2]
[346407335,1734947453913,-2000.52,0.00019178,2]
[346407336,1734947453923,-759.322571,0.00019178,2]
[346407337,1734947453932,-279.18405618,0.00019178,2]
[346407338,1734947453942,-14872.93,0.00019178,2]
[346407339,1734947453952,-14872.93,0.00019178,2]
[346407340,1734947453962,-14872.93,0.00019178,2]
[346407341,1734947453971,-14872.93,0.00019178,2]
[346407342,1734947453981,-14872.93,0.00019178,2]
[346407343,1734947453990,-14872.93,0.00019178,2]
[346407344,1734947453999,-14872.93,0.00019178,2]
[346407345,1734947454008,-14872.93,0.00019178,2]
[346407346,1734947454017,-14872.93,0.00019178,2]
[346407347,1734947454027,-500.0,0.00019178,2]
[346407348,1734947454036,-1027.54,0.00019178,2]
[346407349,1734947454045,-14872.95624541,0.00019178,2]
[346407350,1734947454055,-500.0,0.00019178,2]
[346407351,1734947454064,-4690.64,0.00019178,2]
[346407352,1734947454073,-1212.96,0.00019178,2]
[346407353,1734947454082,-1551.36,0.00019178,2]
[346407354,1734947454092,-610.187804,0.00019178,2]
[346407355,1734947454101,-500.0,0.00019178,2]
[346407356,1734947454110,-2151.37,0.00019178,2]
[346407357,1734947454119,-3565.13,0.00019178,2]
[346407358,1734947454128,-502.76677565,0.00019178,2]
[346407359,1734947454138,-500.0,0.00019178,2]
[346407360,1734947454146,-1987.16,0.00019178,2]
[346407361,1734947454155,-500.0,0.00019178,2]
[346407362,1734947454164,-500.0,0.00019178,2]
[346407363,1734947454174,-500.0,0.00019178,2]
[346407364,1734947454183,-2577.31,0.00019178,2]
[346407365,1734947454192,-500.69817501,0.00019178,2]
[346407366,1734947454202,-500.0,0.00019178,2]
[346407367,1734947454211,-2174.17,0.00019178,2]
[346407368,1734947454220,-500.0,0.00019178,2]
[346407369,1734947454229,-500.0,0.00019178,2]
[346407370,1734947454239,-706.55,0.00019178,2]
[346407371,1734947454248,-3958.34,0.00019178,2]
[346407372,1734947454257,-1764.69,0.00019178,2]
[346407373,1734947454267,-2299.62,0.00019178,2]
[346407374,1734947454276,-500.0,0.00019178,2]
[346407375,1734947454286,-500.0,0.00019178,2]
[346407376,1734947454296,-2007.75,0.00019178,2]
[346407377,1734947454306,-500.0,0.00019178,2]
[346407378,1734947454315,-7432.34,0.00019178,2]
[346407379,1734947454324,-500.0,0.00019178,2]
[346407380,1734947454334,-500.0,0.00019178,2]
[346407381,1734947454343,-500.0,0.00019178,2]
[346407382,1734947454353,-2836.15,0.00019178,2]
[346407383,1734947454363,-860.49,0.00019178,2]
[346407384,1734947454373,-500.0,0.00019178,2]
[346407385,1734947454382,-918.43,0.00019178,2]
[346407386,1734947454392,-704.76,0.00019178,2]
[346407387,1734947454402,-500.0,0.00019178,2]
[346407388,1734947454411,-500.0,0.00019178,2]
[346407389,1734947454421,-750.060373,0.00019178,2]
[346407390,1734947454431,-6500.59,0.00019178,2]
[346407391,1734947454440,-3310.95,0.00019178,2]
[346407392,1734947454450,-500.0,0.00019178,2]
[346407393,1734947454462,-1020.79,0.00019178,2]
[346407394,1734947454471,-500.0,0.00019178,2]
[346407395,1734947454484,-500.0,0.00019178,2]
[346407396,1734947454494,-500.0,0.00019178,2]
[346407397,1734947454503,-500.0,0.00019178,2]
[346407398,1734947454513,-4104.92,0.00019178,2]
[346407399,1734947454522,-500.0,0.00019178,2]
[346407400,1734947454532,-548.51266612,0.00019178,2]
[346407401,1734947454541,-500.0,0.00019178,2]
[346407402,1734947454551,-587.769089,0.00019178,2]
[346407403,1734947454560,-500.0,0.00019178,2]
[346407404,1734947454569,-500.0,0.00019178,2]
[346407405,1734947454578,-500.0,0.00019178,2]
[346407406,1734947454587,-500.0,0.00019178,2]
[346407407,1734947454597,-997.82,0.00019178,2]
[346407408,1734947454606,-500.0,0.00019178,2]
[346407409,1734947454616,-2247.93,0.00019178,2]
[346407410,1734947454625,-2771.32,0.00019178,2]
[346407411,1734947454634,-6599.66,0.00019178,2]
[346407412,1734947454644,-1386.15,0.00019178,2]
[346407413,1734947454654,-500.0,0.00019178,2]
[346407414,1734947454663,-500.0,0.00019178,2]
[346407415,1734947454672,-3623.31,0.00019178,2]
[346407416,1734947454682,-708.85,0.00019178,2]
[346407417,1734947454691,-2279.51,0.00019178,2]
[346407418,1734947454700,-500.0,0.00019178,2]
[346407419,1734947454711,-500.0,0.00019178,2]
[346407420,1734947454721,-500.0,0.00019178,2]
[346407421,1734947454730,-504.69467205,0.00019178,2]
[346407422,1734947454739,-1814.83,0.00019178,2]
[346407423,1734947454749,-590.43,0.00019178,2]
[346407424,1734947454758,-500.0,0.00019178,2]
[346407425,1734947454768,-500.0,0.00019178,2]
[346407426,1734947454781,-500.0,0.00019178,2]
[346407427,1734947454791,-500.0,0.00019178,2]
[346407428,1734947454800,-500.0,0.00019178,2]
[346407429,1734947454809,-500.0,0.00019178,2]
[346407430,1734947454820,-522.23792648,0.00019178,2]
[346407431,1734947454829,-500.0,0.00019178,2]
[346407432,1734947454839,-500.0,0.00019178,2]
[346407433,1734947454849,-500.0,0.00019178,2]
[346407434,1734947454859,-500.0,0.00019178,2]
[346407435,1734947454868,-500.0,0.00019178,2]
[346407436,1734947454878,-505.78414694,0.00019178,2]
[346407437,1734947454888,-500.0,0.00019178,2]
[346407438,1734947454898,-6981.22,0.00019178,2]
[346407439,1734947454908,-5854.31,0.00019178,2]
[346407440,1734947454917,-500.0,0.00019178,2]
[346407441,1734947454927,-222.67871932,0.00019178,2]
[346407442,1734947454937,-735.005263,0.00019178,2]
[346407443,1734947454947,-552.87705474,0.00019178,2]
[346407444,1734947454958,-500.0,0.00019178,2]
[346407445,1734947454967,-723.67,0.00019178,2]
[346407446,1734947454977,-1996.51,0.00019178,2]
[346407447,1734947454986,-4584.89,0.00019178,2]
[346407448,1734947454996,-500.0,0.00019178,2]
[346407449,1734947455006,-686.62,0.00019178,2]
[346407450,1734947455015,-633.77,0.00019178,2]
[346407451,1734947455024,-569.777714,0.00019178,2]
[346407452,1734947455034,-500.0,0.00019178,2]
[346407453,1734947455043,-500.0,0.00019178,2]
[346407454,1734947455053,-500.0,0.00019178,2]
[346407455,1734947455062,-8209.14,0.00019178,2]
[346407456,1734947455071,-500.0,0.00019178,2]
[346407457,1734947455080,-500.0,0.00019178,2]
[346407458,1734947455090,-7691.65,0.00019178,2]
[346407459,1734947455099,-500.0,0.00019178,2]
[346407460,1734947455109,-500.0,0.00019178,2]
[346407461,1734947455118,-433.26442326,0.00019178,2]
[346407462,1734947455128,-8505.16,0.00019178,2]
[346407463,1734947455137,-500.0,0.00019178,2]
[346407464,1734947455146,-500.0,0.00019178,2]
[346407465,1734947455156,-500.0,0.00019178,2]
[346407466,1734947455165,-1509.06,0.00019178,2]
[346407467,1734947455174,-20445.3,0.00019178,2]
[346407468,1734947455184,-500.0,0.00019178,2]
[346407469,1734947455193,-722.56,0.00019178,2]
[346407470,1734947455203,-7211.34,0.00019178,2]
[346407471,1734947455213,-1264.19,0.00019178,2]
[346407472,1734947455222,-500.0,0.00019178,2]
[346407473,1734947455231,-2863.3,0.00019178,2]
[346407474,1734947455241,-500.0,0.00019178,2]
[346407475,1734947455250,-1272.79,0.00019178,2]
[346407476,1734947455259,-1272.79,0.00019178,2]
[346407477,1734947455268,-1272.79,0.00019178,2]
[346407478,1734947455278,-1727.82,0.00019178,2]
[346407479,1734947455287,-1272.79,0.00019178,2]
[346407480,1734947455297,-4153.03,0.00019178,2]
[346407481,1734947455306,-1272.79,0.00019178,2]
[346407482,1734947455315,-500.0,0.00019178,2]
[346407483,1734947455325,-66769.96,0.00019178,2]
[346407484,1734947455334,-1272.79,0.00019178,2]
[346407485,1734947455343,-1272.79,0.00019178,2]
[346407486,1734947455353,-1272.79,0.00019178,2]
[346407487,1734947455362,-564.25,0.00019178,2]
[346407488,1734947455372,-1272.79,0.00019178,2]
[346407489,1734947455381,-1272.79,0.00019178,2]
[346407490,1734947455390,-227.14637643,0.00019178,2]
[346407491,1734947455399,-1272.79,0.00019178,2]
[346407492,1734947455409,-1272.79,0.00019178,2]
[346407493,1734947455418,-1272.79,0.00019178,2]
[346407494,1734947455428,-1272.79,0.00019178,2]
[346407495,1734947455437,-1272.79,0.00019178,2]
[346407496,1734947455446,-1272.79,0.00019178,2]
[346407497,1734947455457,-1272.79,0.00019178,2]
[346407498,1734947455466,-500.0,0.00019178,2]
[346407499,1734947455475,-500.0,0.00019178,2]
[346407500,1734947455485,-1272.79,0.00019178,2]
[346407501,1734947455494,-521.76,0.00019178,2]
[346407502,1734947455503,-27141.95,0.00019178,2]
[346407503,1734947455512,-1272.79,0.00019178,2]
[346407504,1734947455521,-500.0,0.00019178,2]
[346407505,1734947455530,-1272.79,0.00019178,2]
[346407506,1734947455539,-632.15346759,0.00019178,2]
[346407507,1734947455549,-5178.41,0.00019178,2]
[346407508,1734947455558,-1272.79,0.00019178,2]
[346407509,1734947455568,-1272.79,0.00019178,2]
[346407510,1734947455577,-500.0,0.00019178,2]
[346407511,1734947455587,-1272.79,0.00019178,2]
[346407512,1734947455596,-500.0,0.00019178,2]
[346407513,1734947455606,-1272.88,0.00019178,2]
[346407514,1734947455615,-3522.47,0.00019178,2]
[346407515,1734947455624,-3931.5,0.00019178,2]
[346407516,1734947455633,-500.0,0.00019178,2]
[346407517,1734947455642,-500.0,0.00019178,2]
[346407518,1734947455651,-500.0,0.00019178,2]
[346407519,1734947455660,-500.0,0.00019178,2]
[346407520,1734947455669,-1538.04,0.00019178,2]
[346407521,1734947455678,-500.0,0.00019178,2]
[346407522,1734947455688,-500.0,0.00019178,2]
[346407523,1734947455697,-17003.67,0.00019178,2]
[346407524,1734947455706,-500.0,0.00019178,2]
[346407525,1734947455716,-500.0,0.00019178,2]
[346407526,1734947455725,-1888.71,0.00019178,2]
[346407527,1734947455734,-501.66012557,0.00019178,2]
[346407528,1734947455743,-500.0,0.00019178,2]
[346407529,1734947455753,-510.75,0.00019178,2]
[346407530,1734947455762,-500.0,0.00019178,2]
[346407531,1734947455773,-500.0,0.00019178,2]
[346407532,1734947455782,-500.0,0.00019178,2]
[346407533,1734947455791,-500.0,0.00019178,2]
[346407534,1734947455800,-4567.49,0.00019178,2]
[346407535,1734947455809,-2970.27,0.00019178,2]
[346407536,1734947455820,-500.0,0.00019178,2]
[346407537,1734947455829,-500.0,0.00019178,2]
[346407538,1734947455839,-514.37843217,0.00019178,2]
[346407539,1734947455849,-564.07361367,0.00019178,2]
[346407540,1734947455859,-191.2887814,0.00019178,2]
[346407541,1734947455868,-3779.63,0.00019178,2]
[346407542,1734947455877,-5051.46,0.00019178,2]
[346407543,1734947455887,-11220.69,0.00019178,2]
[346407544,1734947455896,-500.0,0.00019178,2]
[346407545,1734947455905,-500.0,0.00019178,2]
[346407546,1734947455915,-500.0,0.00019178,2]
[346407547,1734947455924,-500.0,0.00019178,2]
[346407548,1734947455933,-500.0,0.00019178,2]
[346407549,1734947455943,-6963.93,0.00019178,2]
[346407550,1734947455952,-500.0,0.00019178,2]
[346407551,1734947455961,-500.0,0.00019178,2]
[346407552,1734947455971,-200.0,0.00019178,2]
[346407553,1734947455980,-6187.37,0.00019178,2]
[346407554,1734947455990,-1049.33,0.00019178,2]
[346407555,1734947455999,-2346.75,0.00019178,2]
[346407556,1734947456175,-723.309116,0.00019178,2]
[346407557,1734947456185,-191.10067666,0.00019178,2]
[346407558,1734947456194,-10332.61,0.00019178,2]
[346407559,1734947456204,-500.0,0.00019178,2]
[346407560,1734947456213,-500.0,0.00019178,2]
[346407561,1734947456223,-500.0,0.00019178,2]
[346407562,1734947456232,-500.0,0.00019178,2]
[346407563,1734947456242,-500.0,0.00019178,2]
[346407564,1734947456251,-500.0,0.00019178,2]
[346407565,1734947456260,-500.0,0.00019178,2]
[346407566,1734947456269,-934.12,0.00019178,2]
[346407567,1734947456278,-500.0,0.00019178,2]
[346407568,1734947456287,-1241.12,0.00019178,2]
[346407569,1734947456297,-1298.46,0.00019178,2]
[346407570,1734947456306,-500.0,0.00019178,2]
[346407571,1734947456315,-9373.95,0.00019178,2]
[346407572,1734947456324,-535.6,0.00019178,2]
[346407573,1734947456334,-500.0,0.00019178,2]
[346407574,1734947456344,-2761.57,0.00019178,2]
[346407575,1734947456353,-555.06147,0.00019178,2]
[346407576,1734947456364,-500.0,0.00019178,2]
[346407577,1734947456373,-500.0,0.00019178,2]
[346407578,1734947456383,-5633.19,0.00019178,2]
[346407579,1734947456392,-1005.6,0.00019178,2]
[346407580,1734947456402,-2281.15,0.00019178,2]
[346407581,1734947456412,-1209.18,0.00019178,2]
[346407582,1734947456421,-500.0,0.00019178,2]
[346407583,1734947456431,-1073.51,0.00019178,2]
[346407584,1734947456441,-970.82,0.00019178,2]
[346407585,1734947456450,-500.0,0.00019178,2]
[346407586,1734947456462,-500.0,0.00019178,2]
[346407587,1734947456472,-573.92,0.00019178,2]
[346407588,1734947456481,-3349.04,0.00019178,2]
[346407589,1734947456491,-500.0,0.00019178,2]
[346407590,1734947456500,-500.0,0.00019178,2]
[346407591,1734947456509,-500.0,0.00019178,2]
[346407592,1734947456519,-1068.87,0.00019178,2]
[346407593,1734947456528,-500.85172584,0.00019178,2]
[346407594,1734947456538,-2462.24,0.00019178,2]
[346407595,1734947456547,-4061.8,0.00019178,2]
[346407596,1734947456556,-500.0,0.00019178,2]
[346407597,1734947456565,-500.0,0.00019178,2]
[346407598,1734947456575,-769.54,0.00019178,2]
[346407599,1734947456584,-936.98,0.00019178,2]
[346407600,1734947456593,-500.0,0.00019178,2]
[346407601,1734947456603,-790.339043,0.00019178,2]
[346407602,1734947456613,-637.59,0.00019178,2]
[346407603,1734947456622,-1974.33,0.00019178,2]
[346407604,1734947456632,-500.0,0.00019178,2]
[346407605,1734947456641,-500.0,0.00019178,2]
[346407606,1734947456650,-718.83,0.00019178,2]
[346407607,1734947456660,-929.43,0.00019178,2]
[346407608,1734947456669,-5015.24,0.00019178,2]
[346407609,1734947456679,-500.0,0.00019178,2]
[346407610,1734947456689,-660.835784,0.00019178,2]
[346407611,1734947456698,-984.51,0.00019178,2]
[346407612,1734947456709,-2241.7,0.00019178,2]
[346407613,1734947456718,-500.0,0.00019178,2]
[346407614,1734947456727,-7109.91,0.00019178,2]
[346407615,1734947456737,-500.0,0.00019178,2]
[346407616,1734947456746,-2650.62,0.00019178,2]
[346407617,1734947456755,-2336.12,0.00019178,2]
[346407618,1734947456765,-500.0,0.00019178,2]
[346407619,1734947456779,-500.0,0.00019178,2]
[346407620,1734947456788,-500.0,0.00019178,2]
[346407621,1734947456798,-7130.18,0.00019178,2]
[346407622,1734947456807,-895.26,0.00019178,2]
[346407623,1734947456818,-500.0,0.00019178,2]
[346407624,1734947456828,-500.0,0.00019178,2]
[346407625,1734947456837,-500.0,0.00019178,2]
[346407626,1734947456847,-500.0,0.00019178,2]
[346407627,1734947456856,-500.0,0.00019178,2]
[346407628,1734947456866,-500.0,0.00019178,2]
[346407629,1734947456876,-25061.96,0.00019178,2]
[346407630,1734947456886,-800.38,0.00019178,2]
[346407631,1734947456895,-500.0,0.00019178,2]
[346407632,1734947456904,-500.0,0.00019178,2]
[346407633,1734947456914,-500.0,0.00019178,2]
[346407634,1734947456923,-500.0,0.00019178,2]
[346407635,1734947456933,-500.0,0.00019178,2]
[346407636,1734947456943,-8416.15,0.00019178,2]
[346407637,1734947456952,-579.99,0.00019178,2]
[346407638,1734947456961,-500.0,0.00019178,2]
[346407639,1734947456971,-921.52,0.00019178,2]
[346407640,1734947456980,-500.0,0.00019178,2]
[346407641,1734947456989,-508.31451574,0.00019178,2]
[346407642,1734947456998,-500.0,0.00019178,2]
[346407643,1734947457007,-500.0,0.00019178,2]
[346407644,1734947457016,-2140.81,0.00019178,2]
[346407645,1734947457026,-500.0,0.00019178,2]
[346407646,1734947457035,-787.412969,0.00019178,2]
[346407647,1734947457044,-13446.0,0.00019178,2]
[346407648,1734947457053,-500.0,0.00019178,2]
[346407649,1734947457063,-19843.35,0.00019178,2]
[346407650,1734947457072,-207.10785103,0.00019178,2]
[346407651,1734947457081,-658.111156,0.00019178,2]
[346407652,1734947457090,-496.54890602,0.00019178,2]
[346407653,1734947457099,-500.0,0.00019178,2]
[346407654,1734947457109,-500.0,0.00019178,2]
[346407655,1734947457118,-500.0,0.00019178,2]
[346407656,1734947457127,-315.21621853,0.00019178,2]
[346407657,1734947457136,-500.0,0.00019178,2]
[346407658,1734947457145,-8727.4,0.00019178,2]
[346407659,1734947457154,-557.04,0.00019178,2]
[346407660,1734947457163,-2231.75,0.00019178,2]
[346407661,1734947457173,-500.0,0.00019178,2]
[346407662,1734947457182,-500.0,0.00019178,2]
[346407663,1734947457191,-501.93969763,0.00019178,2]
[346407664,1734947457200,-1955.43,0.00019178,2]
[346407665,1734947457212,-500.0,0.00019178,2]
[346407666,1734947457221,-812.12,0.00019178,2]
[346407667,1734947457230,-5095.77,0.00019178,2]
[346407668,1734947457239,-218.21780837,0.00019178,4]
[346407669,1734947457248,-1000.0,0.00019178,2]
[346407670,1734947457258,-1000.0,0.00019178,2]
[346407671,1734947457267,-1000.0,0.00019178,2]
[346407672,1734947457276,-1000.0,0.00019178,2]
[346407673,1734947457285,-1000.0,0.00019178,2]
[346407674,1734947457295,-1000.0,0.00019178,2]
[346407675,1734947457304,-1000.0,0.00019178,2]
[346407676,1734947457313,-1000.0,0.00019178,2]
[346407677,1734947457322,-1000.0,0.00019178,2]
[346407678,1734947457331,-1000.0,0.00019178,2]
[346407679,1734947457341,-1000.0,0.00019178,2]
[346407680,1734947457350,-1000.0,0.00019178,2]
[346407681,1734947457360,-1000.0,0.00019178,2]
[346407682,1734947457369,-1000.0,0.00019178,2]
[346407683,1734947457378,-1000.0,0.00019178,2]
[346407684,1734947457388,-1000.0,0.00019178,2]
[346407685,1734947457397,-1000.0,0.00019178,2]
[346407686,1734947457406,-1000.0,0.00019178,2]
[346407687,1734947457415,-1000.0,0.00019178,2]
[346407688,1734947457424,-1000.0,0.00019178,2]
[346407689,1734947457433,-1000.0,0.00019178,2]
[346407690,1734947457442,-1000.0,0.00019178,2]
[346407691,1734947457451,-1000.0,0.00019178,2]
[346407692,1734947457461,-1000.0,0.00019178,2]
[346407693,1734947457470,-1000.0,0.00019178,2]
[346407694,1734947457479,-1000.0,0.00019178,2]
[346407695,1734947457488,-1000.0,0.00019178,2]
[346407696,1734947457497,-733.0,0.00019178,2]
[346407697,1734947457506,-1000.0,0.00019178,2]
[346407698,1734947457515,-989.0,0.00019178,2]
[346407699,1734947457523,-4000.0,0.00019178,2]
[346407700,1734947457533,-2304.65,0.00019178,2]
[346407701,1734947457542,-435.9234761,0.0001918,2]
[346407702,1734947457551,-435.9234761,0.0001918,2]
[346407703,1734947457561,-435.9234761,0.0001918,2]
[346407704,1734947457570,-435.9234761,0.0001918,2]
[346407705,1734947457579,-435.9234761,0.0001918,2]
[346407706,1734947457588,-435.9234761,0.0001918,2]
[346407707,1734947457598,-435.9234761,0.0001918,2]
[346407708,1734947457607,-435.9234761,0.0001918,2]
[346407709,1734947457616,-435.9234761,0.0001918,2]
[346407710,1734947457625,-435.9234761,0.0001918,2]
[346407711,1734947457634,-435.9234761,0.0001918,2]
[346407712,1734947457643,-435.9234761,0.0001918,2]
[346407713,1734947457652,-435.9234761,0.0001918,2]
[346407714,1734947457662,-435.9234761,0.0001918,2]
[346407715,1734947457671,-435.9234761,0.0001918,2]
[346407716,1734947457681,-435.9234761,0.0001918,2]
[346407717,1734947457690,-435.9234761,0.0001918,2]
[346407718,1734947457699,-435.9234761,0.0001918,2]
[346407719,1734947457710,-435.9234761,0.0001918,2]
[346407720,1734947457719,-435.92,0.0001918,2]
[346407721,1734947457729,-1000.0,0.000192,2]
[346407722,1734947457739,-250.0,0.000192,2]
[346407723,1734947457748,-250.0,0.000192,2]
[346407724,1734947457757,-250.0,0.000192,2]
[346407725,1734947457767,-250.0,0.000192,2]
[346407726,1734947457780,-250.0,0.000192,2]
[346407727,1734947457789,-250.0,0.000192,2]
[346407728,1734947457798,-250.0,0.000192,2]
[346407729,1734947457808,-250.0,0.000192,2]
[346407730,1734947457819,-250.0,0.000192,2]
[346407731,1734947457828,-250.0,0.000192,2]
[346407732,1734947457838,-250.0,0.000192,2]
[346407733,1734947457847,-250.0,0.000192,2]
[346407734,1734947457857,-250.0,0.000192,2]
[346407735,1734947457867,-250.0,0.000192,2]
[346407736,1734947457876,-250.0,0.000192,2]
[346407737,1734947457885,-250.0,0.000192,2]
[346407738,1734947457895,-250.0,0.000192,2]
[346407739,1734947457905,-250.0,0.000192,2]
[346407740,1734947457914,-250.0,0.000192,2]
[346407741,1734947457924,-250.0,0.000192,2]
[346407742,1734947457933,-250.0,0.000192,2]
[346407743,1734947457943,-250.0,0.000192,2]
[346407744,1734947457954,-250.0,0.000192,2]
[346407745,1734947457963,-250.0,0.000192,2]
[346407746,1734947457973,-250.0,0.000192,2]
[346407747,1734947457983,-250.0,0.000192,2]
[346407748,1734947457993,-250.0,0.000192,2]
[346407749,1734947458002,-250.0,0.000192,2]
[346407750,1734947458012,-250.0,0.000192,2]
[346407751,1734947458021,-250.0,0.000192,2]
[346407752,1734947458030,-250.0,0.000192,2]
[346407753,1734947458040,-250.0,0.000192,2]
[346407754,1734947458049,-250.0,0.000192,2]
[346407755,1734947458058,-250.0,0.000192,2]
[346407756,1734947458068,-250.0,0.000192,2]
[346407757,1734947458077,-250.0,0.000192,2]
[346407758,1734947458087,-250.0,0.000192,2]
[346407759,1734947458096,-250.0,0.000192,2]
[346407760,1734947458106,-1520.79,0.00019205,2]
[346407761,1734947458115,-1520.79,0.00019205,2]
[346407762,1734947458124,-1520.79,0.00019205,2]
[346407763,1734947458134,-1520.79,0.00019205,2]
[346407764,1734947458143,-1520.79,0.00019205,2]
[346407765,1734947458153,-1520.79,0.00019205,2]
[346407766,1734947458162,-1520.79,0.00019205,2]
[346407767,1734947458171,-1520.79,0.00019205,2]
[346407768,1734947458181,-1520.79,0.00019205,2]
[346407769,1734947458191,-1520.79,0.00019205,2]
[346407770,1734947458200,-1520.79,0.00019205,2]
[346407771,1734947458210,-1520.79,0.00019205,2]
[346407772,1734947458220,-1520.79,0.00019205,2]
[346407773,1734947458230,-1520.79,0.00019205,2]
[346407774,1734947458239,-1520.79,0.00019205,2]
[346407775,1734947458249,-1520.79,0.00019205,2]
[346407776,1734947458258,-1520.79,0.00019205,2]
[346407777,1734947458267,-1520.79,0.00019205,2]
[346407778,1734947458276,-1520.79,0.00019205,2]
[346407779,1734947458286,-1520.79,0.00019205,2]
[346407780,1734947458295,-1520.79,0.00019205,2]
[346407781,1734947458304,-1520.79,0.00019205,2]
[346407782,1734947458313,-1520.79,0.00019205,2]
[346407783,1734947458322,-1520.99217148,0.00019205,2]
[346407784,1734947458332,-167.0,0.00019207,2]
[346407785,1734947458341,-152.0,0.00019207,2]
[346407786,1734947458350,-250.0,0.00019207,2]
[346407787,1734947458359,-157.0,0.00019207,2]
[346407788,1734947458370,-157.0,0.00019207,2]
[346407789,1734947458379,-157.0,0.00019207,2]
[346407790,1734947458389,-157.0,0.00019207,2]
[346407791,1734947458399,-157.0,0.00019207,2]
[346407792,1734947458408,-157.0,0.00019207,2]
[346407793,1734947458417,-157.0,0.00019207,2]
[346407794,1734947458427,-157.0,0.00019207,2]
[346407795,1734947458436,-157.0,0.00019207,2]
[346407796,1734947458446,-157.0,0.00019207,2]
[346407797,1734947458456,-157.0,0.00019207,2]
[346407798,1734947458465,-157.0,0.00019207,2]
[346407799,1734947458475,-157.0,0.00019207,2]
[346407800,1734947458485,-157.0,0.00019207,2]
[346407801,1734947458495,-157.0,0.00019207,2]
[346407802,1734947458505,-157.0,0.00019207,2]
[346407803,1734947458515,-157.0,0.00019207,2]
[346407804,1734947458524,-157.0,0.00019207,2]
[346407805,1734947458534,-157.0,0.00019207,2]
[346407806,1734947458544,-161.91,0.00019207,2]
[346407807,1734947458553,-167.0,0.00019212,2]
[346407808,1734947458563,-209.0,0.0001926,2]
[346407809,1734947458572,-210.0,0.0001926,2]
[346407810,1734947458582,-205.0,0.0001926,2]
[346407811,1734947458591,-203.0,0.0001926,2]
[346407812,1734947458600,-333.2763613,0.0001926,2]
[346407813,1734947458610,-3283.0,0.00019261,3]
[346407814,1734947458619,-152.28219762,0.00019288,2]
[346407815,1734947458629,-157.43900495,0.00019288,2]
[346407816,1734947458639,-1000.0,0.000193,2]
[346407817,1734947458814,-203.47,0.00019305,2]
[346407818,1734947458824,-500.0,0.00019313,2]
[346407819,1734947458834,-1600.8,0.00019316,2]
[346407820,1734947458845,-16773.15,0.00019339,2]
[346407821,1734947458855,-333.2763613,0.00019342,2]
[346407822,1734947458865,-200.2,0.0001935,2]
[346407823,1734947458875,-2000.0,0.0001937,2]
[346407824,1734947458884,-200.0,0.0001937,2]
[346407825,1734947458894,-2000.0,0.0001937,2]
[346407826,1734947458903,-200.0,0.0001937,2]
[346407827,1734947458913,-231685.39089986,0.000194,2]
[346407828,1734947458922,-3062.0,0.000194,2]
[346407829,1734947458932,-1000.0,0.000194,2]
[346407830,1734947458942,-333.2763613,0.00019425,2]
[346407831,1734947458952,-5208.34848495,0.00019442,2]
[346407832,1734947458962,-200.0,0.00019443,2]